[Event "-chT Youth Countries 2019"]
[Site "Wuerzburg"]
[Date "2019.10.04"]
[Round "4.2"]
[White "Koelle, Tobias"]
[Black "Lange, Jannis"]
[Result "1/2-1/2"]
[ECO "D85"]
[WhiteElo "2281"]
[BlackElo "2080"]
[Annotator "ChessBase"]
[PlyCount "83"]
[EventDate "2019.10.02"]
[EventType "team-tourn"]
[EventRounds "7"]
[EventCountry "GER"]
[SourceTitle "playchess.com"]
[Source "ChessBase"]
[SourceQuality "1"]
[WhiteTeam "Württemberg"]
[BlackTeam "Mecklenburg-Vorpommern"]
[TimeControl "40/5400+30:1800+30"]

1. d4 {[%emt 0:00:00]} Nf6 {[%emt 0:00:00]} 2. c4 {[%emt 0:00:00]} g6 {[%emt 0:00:00]} 3. Nc3 {[%emt 0:00:22]} d5 {[%emt 0:00:00]} 4. cxd5 {[%emt 0:00:21]} Nxd5 {[%emt 0:00:01]} 5. e4 {[%emt 0:00:06]} Nxc3 {[%emt 0:00:07]} 6. bxc3 {[%emt 0:00:02]} Bg7 {[%emt 0:00:11]} 7. Qa4+ {[%emt 0:00:05]} Nd7 {[%emt 0:08:13]} 8. Nf3 {[%emt 0:00:07]} a6 {[%emt 0:01:21]} 9. Be2 {[%emt 0:00:30]} O-O {[%emt 0:02:43]} 10. O-O {[%emt 0:00:10]} b5 {[%emt 0:01:31]} 11. Qc2 {[%emt 0:02:11]} c5 {[%emt 0:07:53]} 12. d5 {[%emt 0:00:57]} Nb6 {[%emt 0:06:33]} 13. Rb1 {[%emt 0:03:55]} Na4 {[%emt 0:14:22]} 14. Bd2 {[%emt 0:01:51]} Qa5 {[%emt 0:06:25]} 15. Rfc1 {[%emt 0:02:51]} Bg4 {[%emt 0:00:54]} 16. h3 {[%emt 0:12:20]} Bxf3 {[%emt 0:01:16]} 17. Bxf3 {[%emt 0:00:03]} c4 {[%emt 0:00:11]} 18. g3 {[%emt 0:05:54]} e6 {[%emt 0:13:16]} 19. h4 {[%emt 0:04:05]} exd5 {[%emt 0:04:45]} 20. exd5 {[%emt 0:00:18]} Rad8 {[%emt 0:00:40]} 21. h5 {[%emt 0:01:16]} Nb6 {[%emt 0:02:34]} 22. Bg5 {[%emt 0:03:40]} Rd7 {[%emt 0:03:53]} 23. d6 {[%emt 0:01:11]} Na4 {[%emt 0:01:09]} 24. Be7 {[%emt 0:01:05]} Nxc3 {[%emt 0:04:26]} 25. Bxf8 {[%emt 0:00:17]} Kxf8 {[%emt 0:00:29]} 26. h6 {[%emt 0:00:06]} Be5 {[%emt 0:02:35]} 27. Re1 {[%emt 0:04:02]} f6 {[%emt 0:06:57]} 28. Rbc1 {[%emt 0:06:50]} b4 {[%emt 0:01:14]} 29. Be4 {[%emt 0:01:39]} Kf7 {[%emt 0:02:28]} 30. Qd2 {[%emt 0:06:10]} Rxd6 {[%emt 0:02:08]} 31. Qe3 {[%emt 0:00:09]} Qb6 {[%emt 0:00:26]} 32. Qf3 {[%emt 0:02:49]} Rd2 {[%emt 0:02:33]} 33. Re3 {[%emt 0:04:32]} Bd4 {[%emt 0:02:25]} 34. Bd5+ {[%emt 0:08:09]} Kf8 {[%emt 0:01:11]} 35. Be6 {[%emt 0:00:01]} Rxf2 {[%emt 0:01:28]} 36. Kxf2 {[%emt 0:01:55]} Qxe6 {[%emt 0:00:29]} 37. Qa8+ {[%emt 0:00:20]} Ke7 {[%emt 0:00:34]} 38. Qb7+ {[%emt 0:02:15]} Kd8 {[%emt 0:00:02]} 39. Qb8+ {[%emt 0:02:21]} Kd7 {[%emt 0:00:13]} 40. Qb7+ {[%emt 0:00:48]} Kd8 {[%emt 0:00:05]} 41. Qb8+ {[%emt 0:30:26]} Kd7 {[%emt 0:30:27]} 42. Qb7+ {[%emt 0:01:06] normal Ke7} 1/2-1/2

[Event "-chT Youth Countries 2019"]
[Site "Wuerzburg"]
[Date "2019.10.04"]
[Round "4.2"]
[White "Karsay, Pascal"]
[Black "Schneider, Jana"]
[Result "1/2-1/2"]
[ECO "A06"]
[WhiteElo "2276"]
[BlackElo "2240"]
[Annotator "ChessBase"]
[PlyCount "61"]
[EventDate "2019.10.02"]
[EventType "team-tourn"]
[EventRounds "7"]
[EventCountry "GER"]
[SourceTitle "playchess.com"]
[Source "ChessBase"]
[SourceQuality "1"]
[WhiteTeam "Rheinland-Pfalz"]
[BlackTeam "Bayern 1"]
[TimeControl "40/5400+30:1800+30"]

1. Nf3 {[%emt 0:00:00]} d5 {[%emt 0:00:00]} 2. e3 {[%emt 0:00:15]} Nf6 {[%emt 0:00:51]} 3. c4 {[%emt 0:00:37]} e6 {[%emt 0:00:33]} 4. Nc3 {[%emt 0:00:17]} Be7 {[%emt 0:00:38]} 5. b3 {[%emt 0:00:16]} O-O {[%emt 0:00:34]} 6. Bb2 {[%emt 0:00:10]} Nbd7 {[%emt 0:02:24]} 7. g3 {[%emt 0:00:40]} Re8 {[%emt 0:05:17]} 8. Bg2 {[%emt 0:00:33]} c6 {[%emt 0:00:28]} 9. d4 {[%emt 0:00:46]} b6 {[%emt 0:04:33]} 10. O-O {[%emt 0:00:20]} Ba6 {[%emt 0:02:31]} 11. Qe2 {[%emt 0:00:10]} Rc8 {[%emt 0:00:59]} 12. e4 {[%emt 0:12:07]} Nf8 {[%emt 0:05:43]} 13. e5 {[%emt 0:04:28]} N6d7 {[%emt 0:00:42]} 14. Rad1 {[%emt 0:02:47]} Qc7 {[%emt 0:07:13]} 15. Rfe1 {[%emt 0:05:32]} Qb8 {[%emt 0:10:01]} 16. Bf1 {[%emt 0:24:04]} c5 {[%emt 0:01:50]} 17. dxc5 {[%emt 0:05:33]} Bxc5 {[%emt 0:02:05]} 18. Nb5 {[%emt 0:01:44]} Bxb5 {[%emt 0:03:07]} 19. cxb5 {[%emt 0:00:05]} Bb4 {[%emt 0:00:26]} 20. Nd4 {[%emt 0:06:43]} Bxe1 {[%emt 0:08:33]} 21. Rxe1 {[%emt 0:00:09]} Nc5 {[%emt 0:01:22]} 22. b4 {[%emt 0:02:59]} Ncd7 {[%emt 0:06:24]} 23. Qe3 {[%emt 0:01:23]} f6 {[%emt 0:09:17]} 24. exf6 {[%emt 0:00:58]} Nxf6 {[%emt 0:02:08]} 25. Nc6 {[%emt 0:08:31]} Qb7 {[%emt 0:03:14]} 26. Bd3 {[%emt 0:02:41]} Qf7 {[%emt 0:05:37]} 27. Ne5 {[%emt 0:01:04]} Qh5 {[%emt 0:01:51]} 28. Be2 {[%emt 0:00:28]} Qf5 {[%emt 0:00:18]} 29. Bd3 {[%emt 0:00:25]} Qh5 {[%emt 0:00:06]} 30. Be2 {[%emt 0:00:03]} Qf5 {[%emt 0:03:33]} 31. Bd3 {[%emt 0:01:38] normal} 1/2-1/2

[Event "-chT Youth Countries 2019"]
[Site "Wuerzburg"]
[Date "2019.10.04"]
[Round "4.2"]
[White "Niermann, Tristan"]
[Black "Knuedel, Torben"]
[Result "1-0"]
[ECO "E06"]
[WhiteElo "2227"]
[BlackElo "2193"]
[Annotator "NA"]
[PlyCount "85"]
[EventDate "2019.10.02"]
[EventType "team-tourn"]
[EventRounds "7"]
[EventCountry "GER"]
[SourceTitle "playchess.com"]
[Source "ChessBase"]
[SourceQuality "1"]
[WhiteTeam "Nordrhein-Westfalen"]
[BlackTeam "Niedersachsen"]
[TimeControl "40/5400+30:1800+30"]

1. d4 {[%emt 0:00:00]} Nf6 {[%emt 0:00:00]} 2. c4 e6 {[%emt 0:00:00]} 3. g3 {[%emt 0:00:00]} d5 {[%emt 0:00:00]} 4. Nf3 {[%emt 0:00:00]} Be7 {[%emt 0:00:00]} 5. Bg2 {[%emt 0:00:00]} O-O {[%emt 0:00:03]} 6. O-O {[%emt 0:00:03]} dxc4 {[%emt 0:00:04]} 7. Qc2 {[%emt 0:00:04]} a6 {[%emt 0:00:03]} 8. a4 {[%emt 0:00:07]} Bd7 {[%emt 0:00:02]} 9. Qxc4 {[%emt 0:00:05]} Bc6 {[%emt 0:00:03]} 10. Bf4 {[%emt 0:00:07]} Nbd7 {[%emt 0:00:04]} 11. Nc3 {[%emt 0:02:35]} Bd6 {[%emt 0:00:05]} 12. Bg5 {[%emt 0:08:34]} h6 {[%emt 0:00:05]} 13. Bxf6 {[%emt 0:05:39]} Nxf6 {[%emt 0:00:04]} 14. Qd3 {[%emt 0:04:51]} Bb4 {[%emt 0:06:20]} 15. Rfe1 {[%emt 0:13:20]} Bxc3 {[%emt 0:04:33]} 16. bxc3 {[%emt 0:00:30]} Be4 {[%emt 0:00:51]} 17. Qe3 {[%emt 0:01:17]} c5 {[%emt 0:06:14]} 18. Red1 {[%emt 0:15:05]} Qa5 {[%emt 0:01:36]} 19. dxc5 {[%emt 0:07:01]} Rfd8 {[%emt 0:16:52]} 20. Rd4 {[%emt 0:11:48]} Bc6 {[%emt 0:05:50]} 21. Ne5 {[%emt 0:03:13]} Bxg2 {[%emt 0:02:01]} 22. Kxg2 {[%emt 0:00:11]} Nd5 {[%emt 0:13:39]} 23. Qf3 {[%emt 0:01:47]} Qc7 {[%emt 0:00:20]} 24. Rad1 {[%emt 0:02:24]} Qxe5 {[%emt 0:08:56]} 25. e4 {[%emt 0:01:34]} Rac8 {[%emt 0:01:59]} 26. exd5 {[%emt 0:00:12]} Rxd5 {[%emt 0:01:05]} 27. Rxd5 {[%emt 0:01:04]} exd5 {[%emt 0:00:03]} 28. Rxd5 {[%emt 0:01:10]} Qe8 {[%emt 0:11:13]} 29. Qf5 {[%emt 0:07:06]} Qc6 {[%emt 0:04:32]} 30. Qd7 {[%emt 0:00:43]} Qxd7 {[%emt 0:01:24]} 31. Rxd7 {[%emt 0:00:05]} Rxc5 {[%emt 0:00:05]} 32. Rxb7 {[%emt 0:00:04]} g6 {[%emt 0:03:19]} 33. Rb6 {[%emt 0:07:53]} Ra5 {[%emt 0:00:12]} 34. Rb4 {[%emt 0:00:39]} Rc5 {[%emt 0:00:27]} 35. c4 {[%emt 0:01:32]} Rf5 {[%emt 0:02:37]} 36. f4 {[%emt 0:01:44]} h5 {[%emt 0:02:51]} 37. Kf3 {[%emt 0:00:38]} Rc5 {[%emt 0:00:11]} 38. Ke4 {[%emt 0:00:07]} Kf8 {[%emt 0:05:12]} 39. Kd4 {[%emt 0:00:38]} Ra5 {[%emt 0:00:20]} 40. c5 {[%emt 0:00:28]} Ke7 {[%emt 0:02:24]} 41. Rc4 {[%emt 0:31:00]} Kd7 {[%emt 0:32:37]} 42. Kc3 {[%emt 0:00:08]} Kc6 {[%emt 0:00:04]} 43. Kb4 {normal} 1-0

[Event "-chT Youth Countries 2019"]
[Site "Wuerzburg"]
[Date "2019.10.04"]
[Round "4.2"]
[White "Nguyen, Alex Dac-Vuong"]
[Black "Sieber, Fiona"]
[Result "0-1"]
[ECO "A28"]
[WhiteElo "2128"]
[BlackElo "2252"]
[Annotator "NA"]
[PlyCount "63"]
[EventDate "2019.10.02"]
[EventType "team-tourn"]
[EventRounds "7"]
[EventCountry "GER"]
[SourceTitle "playchess.com"]
[Source "ChessBase"]
[SourceQuality "1"]
[WhiteTeam "Sachsen"]
[BlackTeam "Sachsen-Anhalt"]
[TimeControl "40/5400+30:1800+30"]

1. c4 {[%emt 0:00:00]} Nf6 {[%emt 0:00:37]} 2. Nc3 {[%emt 0:00:00]} e5 {[%emt 0:02:16]} 3. Nf3 {[%emt 0:00:08]} Nc6 {[%emt 0:00:18]} 4. e4 {[%emt 0:00:07]} Bc5 {[%emt 0:17:19]} 5. Nxe5 {[%emt 0:01:48]} Nxe5 {[%emt 0:00:51]} 6. d4 {[%emt 0:00:07]} Bb4 {[%emt 0:00:50]} 7. dxe5 {[%emt 0:00:07]} Nxe4 {[%emt 0:00:23]} 8. Qf3 {[%emt 0:00:08]} f5 {[%emt 0:06:04]} 9. Be2 {[%emt 0:21:00]} O-O {[%emt 0:01:42]} 10. O-O {[%emt 0:00:14]} Bxc3 {[%emt 0:01:49]} 11. bxc3 {[%emt 0:00:05]} b6 {[%emt 0:01:23]} 12. Ba3 {[%emt 0:03:06]} c5 {[%emt 0:04:16]} 13. Qd3 {[%emt 0:04:22]} Bb7 {[%emt 0:00:31]} 14. Rad1 {[%emt 0:01:13]} Bc6 {[%emt 0:01:41]} 15. Bc1 {[%emt 0:10:20]} Qe7 {[%emt 0:10:29]} 16. f3 {[%emt 0:02:08]} Ng5 {[%emt 0:01:32]} 17. Rfe1 {[%emt 0:14:32]} Rae8 {[%emt 0:08:43]} 18. Qd6 {[%emt 0:11:31]} Qxd6 {[%emt 0:01:44]} 19. Rxd6 {[%emt 0:01:23]} Nf7 {[%emt 0:00:38]} 20. Rxc6 {[%emt 0:00:05]} dxc6 {[%emt 0:00:10]} 21. f4 {[%emt 0:00:06]} g5 {[%emt 0:05:26]} 22. Bh5 {[%emt 0:06:15]} Re7 {[%emt 0:03:31]} 23. g4 {[%emt 0:05:48]} fxg4 {[%emt 0:08:29]} 24. e6 {[%emt 0:00:56]} Nd8 {[%emt 0:03:54]} 25. f5 {[%emt 0:00:21]} h6 {[%emt 0:08:14]} 26. Bxg4 {[%emt 0:00:23]} Kg7 {[%emt 0:00:27]} 27. h4 {[%emt 0:02:47]} Kf6 {[%emt 0:00:28]} 28. hxg5+ {[%emt 0:01:57]} hxg5 {[%emt 0:00:02]} 29. Be3 {[%emt 0:00:47]} Nb7 {[%emt 0:04:32]} 30. Kg2 {[%emt 0:02:46]} Nd6 {[%emt 0:03:20]} 31. Bg1 {[%emt 0:03:37]} Nxc4 {[%emt 0:01:13]} 32. Bh2 {[%emt 0:02:08] normal} 0-1

[Event "-chT Youth Countries 2019"]
[Site "Wuerzburg"]
[Date "2019.10.04"]
[Round "4.2"]
[White "Holinka, Henning"]
[Black "Ratay, Meike"]
[Result "1-0"]
[ECO "B96"]
[WhiteElo "2101"]
[BlackElo "2032"]
[Annotator "NA"]
[PlyCount "63"]
[EventDate "2019.10.02"]
[EventType "team-tourn"]
[EventRounds "7"]
[EventCountry "GER"]
[SourceTitle "playchess.com"]
[Source "ChessBase"]
[SourceQuality "1"]
[WhiteTeam "Hamburg/Schleswig-Holstein"]
[BlackTeam "Thüringen"]
[TimeControl "40/5400+30:1800+30"]

1. e4 {[%emt 0:00:00]} c5 {[%emt 0:00:00]} 2. Nf3 {[%emt 0:00:00]} d6 {[%emt 0:00:00]} 3. d4 {[%emt 0:00:00]} Nf6 {[%emt 0:00:00]} 4. Nc3 {[%emt 0:00:00]} cxd4 {[%emt 0:00:00]} 5. Nxd4 {[%emt 0:00:01]} a6 {[%emt 0:00:00]} 6. Bg5 {[%emt 0:00:07]} e6 {[%emt 0:00:00]} 7. f4 {[%emt 0:00:07]} Nbd7 {[%emt 0:00:02]} 8. Qe2 {[%emt 0:00:58]} Qc7 {[%emt 0:02:05]} 9. O-O-O {[%emt 0:01:55]} b5 {[%emt 0:03:34]} 10. a3 {[%emt 0:05:47]} Bb7 {[%emt 0:06:02]} 11. g4 {[%emt 0:03:51]} Rc8 {[%emt 0:09:49]} 12. Rg1 {[%emt 0:06:40]} h6 {[%emt 0:13:55]} 13. Bh4 {[%emt 0:05:04]} Nb6 {[%emt 0:05:41]} 14. Rg3 {[%emt 0:22:56]} Be7 {[%emt 0:11:57]} 15. Rh3 {[%emt 0:04:41]} Nc4 {[%emt 0:08:31]} 16. Be1 {[%emt 0:06:17]} Qb6 {[%emt 0:07:26]} 17. g5 {[%emt 0:03:55]} Nd7 {[%emt 0:00:41]} 18. g6 {[%emt 0:05:26]} b4 {[%emt 0:03:15]} 19. gxf7+ {[%emt 0:01:19]} Kxf7 {[%emt 0:00:20]} 20. axb4 {[%emt 0:03:04]} Qxb4 {[%emt 0:00:49]} 21. Nb3 {[%emt 0:00:56]} Bf6 {[%emt 0:05:59]} 22. e5 {[%emt 0:02:16]} Be7 {[%emt 0:06:50]} 23. Rg3 {[%emt 0:07:56]} g6 {[%emt 0:01:57]} 24. Nd5 {[%emt 0:01:55]} Qa4 {[%emt 0:01:34]} 25. Nxe7 {[%emt 0:02:25]} Qa2 {[%emt 0:01:44]} 26. Bc3 {[%emt 0:01:23]} Kxe7 {[%emt 0:01:47]} 27. Rxg6 {[%emt 0:02:36]} d5 {[%emt 0:03:12]} 28. Rxe6+ {[%emt 0:04:05]} Kxe6 {[%emt 0:00:57]} 29. Qg4+ {[%emt 0:00:19]} Ke7 {[%emt 0:01:02]} 30. Qg7+ {[%emt 0:00:36]} Kd8 {[%emt 0:00:13]} 31. Qxh8+ {[%emt 0:00:37]} Kc7 {[%emt 0:00:10]} 32. Qg7 {[%emt 0:00:46] normal} 1-0

[Event "-chT Youth Countries 2019"]
[Site "Wuerzburg"]
[Date "2019.10.04"]
[Round "4.2"]
[White "Junker, Magnus"]
[Black "Schmidek, Emil"]
[Result "1/2-1/2"]
[ECO "D37"]
[WhiteElo "2059"]
[BlackElo "2387"]
[Annotator "RC"]
[PlyCount "110"]
[EventDate "2019.10.02"]
[EventType "team-tourn"]
[EventRounds "7"]
[EventCountry "GER"]
[SourceTitle "playchess.com"]
[Source "ChessBase"]
[SourceQuality "1"]
[WhiteTeam "Bayern 2"]
[BlackTeam "Berlin"]
[TimeControl "40/5400+30:1800+30"]

1. c4 {[%emt 0:00:00]} e6 {[%emt 0:00:00]} 2. Nc3 {[%emt 0:00:00]} d5 {[%emt 0:00:00]} 3. d4 {[%emt 0:00:00]} a6 {[%emt 0:00:00]} 4. cxd5 {[%emt 0:02:00]} exd5 {[%emt 0:00:00]} 5. Nf3 {[%emt 0:00:06]} Nf6 {[%emt 0:00:00]} 6. Bg5 {[%emt 0:00:07]} Be6 {[%emt 0:00:00]} 7. e3 {[%emt 0:00:14]} Nbd7 {[%emt 0:00:11]} 8. Bd3 {[%emt 0:00:21]} Bd6 {[%emt 0:00:20]} 9. O-O {[%emt 0:00:22]} O-O {[%emt 0:00:25]} 10. e4 {[%emt 0:03:39]} dxe4 {[%emt 0:08:56]} 11. Bxe4 {[%emt 0:00:14]} Qb8 {[%emt 0:20:28]} 12. Bc2 {[%emt 0:04:22]} c6 {[%emt 0:10:27]} 13. h3 {[%emt 0:01:45]} h6 {[%emt 0:02:47]} 14. Bxf6 {[%emt 0:01:10]} Nxf6 {[%emt 0:00:06]} 15. Qd3 {[%emt 0:00:05]} Re8 {[%emt 0:09:32]} 16. Rfe1 {[%emt 0:01:03]} Bf8 {[%emt 0:29:32]} 17. Ne5 {[%emt 0:03:11]} Qd6 {[%emt 0:03:44]} 18. Ne4 {[%emt 0:02:27]} Nxe4 {[%emt 0:00:07]} 19. Qxe4 {[%emt 0:00:05]} f5 {[%emt 0:00:50]} 20. Qf4 {[%emt 0:02:48]} g5 {[%emt 0:07:47]} 21. Qf3 {[%emt 0:01:12]} Qxd4 {[%emt 0:00:59]} 22. Rad1 {[%emt 0:01:46]} Qf4 {[%emt 0:01:43]} 23. Qh5 {[%emt 0:00:20]} Bg7 {[%emt 0:00:57]} 24. Qg6 {[%emt 0:01:04]} Re7 {[%emt 0:02:37]} 25. a3 {[%emt 0:07:24]} Bd5 {[%emt 0:00:27]} 26. g3 {[%emt 0:01:15]} Qxe5 {[%emt 0:00:05]} 27. Rxe5 {[%emt 0:00:09]} Rxe5 {[%emt 0:00:02]} 28. Bxf5 {[%emt 0:02:59]} Rae8 {[%emt 0:00:10]} 29. f4 {[%emt 0:01:58]} Re3 {[%emt 0:00:29]} 30. Rxd5 {[%emt 0:01:46]} cxd5 {[%emt 0:00:57]} 31. fxg5 {[%emt 0:00:00]} hxg5 {[%emt 0:00:58]} 32. Qxg5 {[%emt 0:00:34]} Re1+ {[%emt 0:00:49]} 33. Kg2 {[%emt 0:00:30]} R1e2+ {[%emt 0:00:30]} 34. Kf3 {[%emt 0:00:30]} d4 35. h4 {[%emt 0:01:51]} d3 {[%emt 0:01:02]} 36. Bg6 {[%emt 0:12:34]} Rf8+ 37. Kg4 {[%emt 0:00:15]} Re5 {[%emt 0:00:38]} 38. Qd2 {[%emt 0:02:08]} Rd8 {[%emt 0:00:15]} 39. Kh3 {[%emt 0:02:49]} Re2 {[%emt 0:00:19]} 40. Qg5 {[%emt 0:01:20]} Rd6 {[%emt 0:01:06]} 41. Qg4 {[%emt 0:34:03]} b5 42. Bxd3 {[%emt 0:00:00]} Rxb2 {[%emt 0:27:45]} 43. Qc8+ {[%emt 0:00:00]} Bf8 {[%emt 0:00:49]} 44. Bf5 {[%emt 0:00:00]} Re2 45. Qc7 Be7 {[%emt 0:03:09]} 46. h5 {[%emt 0:00:00]} Re3 {[%emt 0:01:22]} 47. a4 {[%emt 0:00:00]} Rf6 {[%emt 0:00:35]} 48. Qc8+ {[%emt 0:00:00]} Kg7 {[%emt 0:00:08]} 49. axb5 {[%emt 0:00:00]} axb5 {[%emt 0:00:01]} 50. Kg2 {[%emt 0:00:00]} b4 {[%emt 0:00:32]} 51. g4 {[%emt 0:00:00]} Rd6 {[%emt 0:00:23]} 52. Qc1 {[%emt 0:00:00]} Re2+ {[%emt 0:00:29]} 53. Kf3 {[%emt 0:00:00]} Rdd2 {[%emt 0:00:29]} 54. Qa1+ {[%emt 0:00:00]} Bf6 {[%emt 0:01:27]} 55. h6+ {[%emt 0:00:00]} Kf7 {[%emt 0:00:04] normal} 1/2-1/2

[Event "-chT Youth Countries 2019"]
[Site "Wuerzburg"]
[Date "2019.10.04"]
[Round "4.3"]
[White "Pallas, Sebastian"]
[Black "Dahl, Christoph"]
[Result "1/2-1/2"]
[ECO "C45"]
[WhiteElo "2291"]
[BlackElo "2178"]
[Annotator "NA"]
[PlyCount "94"]
[EventDate "2019.10.02"]
[EventType "team-tourn"]
[EventRounds "7"]
[EventCountry "GER"]
[SourceTitle "playchess.com"]
[Source "ChessBase"]
[SourceQuality "1"]
[WhiteTeam "Sachsen-Anhalt"]
[BlackTeam "Sachsen"]
[TimeControl "40/5400+30:1800+30"]

1. e4 {[%emt 0:00:00]} e5 {[%emt 0:00:00]} 2. Nf3 {[%emt 0:00:00]} Nc6 {[%emt 0:00:00]} 3. d4 {[%emt 0:00:11]} exd4 {[%emt 0:00:05]} 4. Nxd4 {[%emt 0:00:13]} Bc5 {[%emt 0:00:25]} 5. Nxc6 {[%emt 0:00:33]} Qf6 {[%emt 0:00:30]} 6. Qf3 {[%emt 0:00:12]} Qxf3 {[%emt 0:00:54]} 7. gxf3 {[%emt 0:00:09]} bxc6 {[%emt 0:00:07]} 8. Nd2 {[%emt 0:00:22]} Ne7 {[%emt 0:00:48]} 9. Nb3 {[%emt 0:00:17]} Bb6 {[%emt 0:00:36]} 10. a4 {[%emt 0:02:07]} a5 {[%emt 0:01:51]} 11. Rg1 {[%emt 0:00:39]} O-O {[%emt 0:00:42]} 12. Be3 {[%emt 0:00:07]} Bxe3 {[%emt 0:00:51]} 13. fxe3 {[%emt 0:00:07]} d6 {[%emt 0:00:14]} 14. O-O-O {[%emt 0:04:15]} Ba6 {[%emt 0:07:02]} 15. Bxa6 {[%emt 0:28:58]} Rxa6 {[%emt 0:00:00]} 16. e5 {[%emt 0:00:36]} c5 {[%emt 0:10:27]} 17. exd6 {[%emt 0:00:18]} cxd6 {[%emt 0:00:01]} 18. e4 {[%emt 0:00:14]} f5 {[%emt 0:39:09]} 19. Nd2 {[%emt 0:06:46]} fxe4 {[%emt 0:01:54]} 20. fxe4 {[%emt 0:00:06]} Rf4 {[%emt 0:02:34]} 21. Rge1 {[%emt 0:11:17]} Kf7 {[%emt 0:06:03]} 22. Nc4 {[%emt 0:03:43]} Ke6 {[%emt 0:00:58]} 23. b3 {[%emt 0:00:41]} Ng6 {[%emt 0:00:40]} 24. Rd5 {[%emt 0:07:54]} Ne7 {[%emt 0:03:02]} 25. Rd2 {[%emt 0:00:55]} Nc8 {[%emt 0:05:17]} 26. Nb2 {[%emt 0:04:58]} Rc6 {[%emt 0:02:49]} 27. Nc4 {[%emt 0:02:47]} Ra6 {[%emt 0:00:06]} 28. Rg2 {[%emt 0:07:09]} g6 {[%emt 0:00:35]} 29. Kd2 {[%emt 0:00:27]} Nb6 {[%emt 0:01:17]} 30. Nb2 {[%emt 0:04:08]} Nd7 {[%emt 0:01:23]} 31. Nd3 {[%emt 0:00:40]} Rf6 {[%emt 0:03:27]} 32. Ke3 {[%emt 0:02:32]} Ne5 {[%emt 0:00:56]} 33. Nxe5 {[%emt 0:02:15]} Kxe5 {[%emt 0:00:57]} 34. Rd1 {[%emt 0:00:56]} Ke6 {[%emt 0:01:27]} 35. Rgd2 {[%emt 0:03:18]} Ke7 {[%emt 0:00:28]} 36. Rd5 {[%emt 0:01:04]} Rc6 {[%emt 0:00:44]} 37. h4 {[%emt 0:02:23]} h6 {[%emt 0:01:10]} 38. R5d2 {[%emt 0:01:20]} Rb6 {[%emt 0:01:41]} 39. Rd5 {[%emt 0:01:58]} Re6 {[%emt 0:00:30]} 40. Kd3 {[%emt 0:02:29]} Rb4 {[%emt 0:00:39]} 41. Re1 {[%emt 0:30:13]} Kd7 {[%emt 0:30:48]} 42. Re2 {[%emt 0:00:00]} Kc6 {[%emt 0:00:00]} 43. Re3 {[%emt 0:00:00]} Rexe4 {[%emt 0:00:00]} 44. Rxe4 {[%emt 0:00:00]} Kxd5 {[%emt 0:00:00]} 45. c4+ {[%emt 0:00:00]} Kc6 {[%emt 0:00:00]} 46. Kc3 {[%emt 0:00:00]} Rb8 {[%emt 0:00:00]} 47. Re7 {[%emt 0:00:00]} Rf8 {[%emt 0:00:00] normal} 1/2-1/2

[Event "-chT Youth Countries 2019"]
[Site "Wuerzburg"]
[Date "2019.10.04"]
[Round "4.3"]
[White "Goldbeck, Lars"]
[Black "Musiolik, David"]
[Result "1/2-1/2"]
[ECO "D37"]
[WhiteElo "2203"]
[BlackElo "2195"]
[Annotator "ChessBase"]
[PlyCount "61"]
[EventDate "2019.10.02"]
[EventType "team-tourn"]
[EventRounds "7"]
[EventCountry "GER"]
[SourceTitle "playchess.com"]
[Source "ChessBase"]
[SourceQuality "1"]
[WhiteTeam "Bayern 1"]
[BlackTeam "Rheinland-Pfalz"]
[TimeControl "40/5400+30:1800+30"]

1. d4 {[%emt 0:00:00]} d5 {[%emt 0:00:00]} 2. c4 {[%emt 0:00:00]} e6 {[%emt 0:00:00]} 3. Nc3 {[%emt 0:00:00]} Be7 {[%emt 0:00:03]} 4. Nf3 {[%emt 0:00:00]} Nf6 {[%emt 0:00:04]} 5. Bf4 {[%emt 0:00:00]} O-O {[%emt 0:03:16]} 6. e3 {[%emt 0:00:00]} c6 {[%emt 0:01:15]} 7. Qc2 {[%emt 0:00:06]} Na6 {[%emt 0:03:29]} 8. Rd1 {[%emt 0:09:47]} h6 {[%emt 0:06:46]} 9. a3 {[%emt 0:05:30]} Nc7 {[%emt 0:02:38]} 10. e4 {[%emt 0:18:36]} b6 {[%emt 0:05:27]} 11. Ne5 {[%emt 0:05:10]} Bb7 {[%emt 0:03:33]} 12. Bd3 {[%emt 0:06:48]} c5 {[%emt 0:04:43]} 13. dxc5 {[%emt 0:04:47]} bxc5 {[%emt 0:01:07]} 14. cxd5 {[%emt 0:03:41]} exd5 {[%emt 0:02:23]} 15. exd5 {[%emt 0:01:14]} Ncxd5 {[%emt 0:01:59]} 16. Nxd5 {[%emt 0:00:18]} Bxd5 {[%emt 0:00:51]} 17. O-O {[%emt 0:01:08]} Qb6 {[%emt 0:01:34]} 18. Nc4 {[%emt 0:05:32]} Qb7 {[%emt 0:04:07]} 19. Rfe1 {[%emt 0:00:44]} Rfe8 {[%emt 0:02:08]} 20. Re3 {[%emt 0:06:32]} Rad8 {[%emt 0:09:46]} 21. Rde1 {[%emt 0:03:50]} Bf8 {[%emt 0:03:33]} 22. f3 {[%emt 0:04:51]} Re6 {[%emt 0:05:47]} 23. Rxe6 {[%emt 0:04:18]} Bxe6 {[%emt 0:00:37]} 24. Be5 {[%emt 0:01:31]} Be7 {[%emt 0:02:36]} 25. Bf5 {[%emt 0:03:32]} Bxf5 {[%emt 0:02:32]} 26. Qxf5 {[%emt 0:00:02]} Qd7 {[%emt 0:00:25]} 27. Qxd7 {[%emt 0:01:40]} Rxd7 {[%emt 0:03:48]} 28. Kf2 {[%emt 0:01:54]} Kf8 {[%emt 0:01:05]} 29. Ke2 {[%emt 0:02:26]} Nd5 {[%emt 0:08:03]} 30. Rd1 {[%emt 0:02:30]} Ke8 {[%emt 0:03:08]} 31. Ne3 {[%emt 0:03:34] normal} 1/2-1/2